[Event "December 12 Early 2023"]
[Site "https://www.chess.com"]
[Date "2023.12.12"]
[Round "6"]
[White "Saim, Mohamed Ilias"]
[Black "La Villa Rivas, Marlon Javier"]
[Result "1/2-1/2"]
[Board "177"]
[TimeControl "180+1"]
[WhiteFideId "7900465"]
[BlackFideId "3519546"]
[WhiteElo "2048"]
[BlackElo "2347"]
[WhiteTeam "ALG"]
[BlackTeam "CUB"]
[WhiteClock "0:00:15"]
[BlackClock "0:01:09"]

1. c4 {[%clk 0:02:56]}  Nf6 {[%clk 0:02:58]} 2. g3 {[%clk 0:02:55]}  g6 {[%clk 0:02:56]} 3. Bg2 {[%clk 0:02:55]}  Bg7 {[%clk 0:02:57]} 4. Nc3 {[%clk 0:02:55]}  O-O {[%clk 0:02:57]} 5. e4 {[%clk 0:02:53]}  d6 {[%clk 0:02:58]} 6. Nge2 {[%clk 0:02:53]}  Nc6 {[%clk 0:02:58]} 7. d3 {[%clk 0:02:53]}  e5 {[%clk 0:02:58]} 8. O-O {[%clk 0:02:53]}  Ne7 {[%clk 0:02:57]} 9. Be3 {[%clk 0:02:48]}  h6 {[%clk 0:02:57]} 10. h3 {[%clk 0:02:48]}  Be6 {[%clk 0:02:55]} 11. Nd5 {[%clk 0:02:43]}  c6 {[%clk 0:02:53]} 12. Nxf6+ {[%clk 0:02:43]}  Bxf6 {[%clk 0:02:52]} 13. Bxh6 {[%clk 0:02:43]}  Re8 {[%clk 0:02:48]} 14. Be3 {[%clk 0:02:40]}  d5 {[%clk 0:02:47]} 15. cxd5 {[%clk 0:02:30]}  cxd5 {[%clk 0:02:48]} 16. Qd2 {[%clk 0:02:23]}  dxe4 {[%clk 0:02:45]} 17. dxe4 {[%clk 0:02:21]}  Bc4 {[%clk 0:02:33]} 18. Rfd1 {[%clk 0:02:12]}  Qxd2 {[%clk 0:02:22]} 19. Rxd2 {[%clk 0:02:13]}  Red8 {[%clk 0:02:22]} 20. Nc3 {[%clk 0:02:01]}  Nc6 {[%clk 0:02:18]} 21. Rad1 {[%clk 0:01:55]}  Nd4 {[%clk 0:02:16]} 22. Bxd4 {[%clk 0:01:45]}  exd4 {[%clk 0:02:17]} 23. Nd5 {[%clk 0:01:45]}  Bg7 {[%clk 0:02:17]} 24. b3 {[%clk 0:01:37]}  Bb5 {[%clk 0:02:13]} 25. Nc7 {[%clk 0:01:34]}  Bc6 {[%clk 0:02:10]} 26. Nxa8 {[%clk 0:01:33]}  Rxa8 {[%clk 0:02:11]} 27. f4 {[%clk 0:01:27]}  g5 {[%clk 0:02:07]} 28. e5 {[%clk 0:01:26]}  gxf4 {[%clk 0:02:06]} 29. Bxc6 {[%clk 0:01:24]}  bxc6 {[%clk 0:02:06]} 30. gxf4 {[%clk 0:01:23]}  c5 {[%clk 0:02:06]} 31. Kg2 {[%clk 0:01:17]}  a5 {[%clk 0:02:05]} 32. Rc2 {[%clk 0:01:13]}  Bf8 {[%clk 0:02:03]} 33. Kf3 {[%clk 0:01:12]}  Be7 {[%clk 0:02:03]} 34. Ke4 {[%clk 0:01:11]}  a4 {[%clk 0:02:01]} 35. f5 {[%clk 0:01:06]}  axb3 {[%clk 0:01:53]} 36. axb3 {[%clk 0:01:07]}  f6 {[%clk 0:01:47]} 37. Rg1+ {[%clk 0:01:05]}  Kf8 {[%clk 0:01:46]} 38. exf6 {[%clk 0:01:02]}  Bxf6 {[%clk 0:01:45]} 39. Rxc5 {[%clk 0:01:00]}  Re8+ {[%clk 0:01:46]} 40. Kd3 {[%clk 0:00:57]}  Re3+ {[%clk 0:01:46]} 41. Kc4 {[%clk 0:00:57]}  Rc3+ {[%clk 0:01:45]} 42. Kd5 {[%clk 0:00:55]}  Rxb3 {[%clk 0:01:45]} 43. Ke6 {[%clk 0:00:50]}  Rb6+ {[%clk 0:01:41]} 44. Kd5 {[%clk 0:00:47]}  d3 {[%clk 0:01:41]} 45. Rc6 {[%clk 0:00:47]}  Rb5+ {[%clk 0:01:29]} 46. Ke6 {[%clk 0:00:45]}  Bd8 {[%clk 0:01:15]} 47. Rc8 {[%clk 0:00:42]}  Rb6+ {[%clk 0:01:15]} 48. Kd7 {[%clk 0:00:36]}  d2 {[%clk 0:01:15]} 49. Rxd8+ {[%clk 0:00:35]}  Kf7 {[%clk 0:01:16]} 50. Kc7 {[%clk 0:00:31]}  Rb2 {[%clk 0:01:15]} 51. Rd1 {[%clk 0:00:31]}  Kf6 {[%clk 0:01:14]} 52. R8xd2 {[%clk 0:00:31]}  Rb3 {[%clk 0:01:15]} 53. Rd3 {[%clk 0:00:27]}  Rb2 {[%clk 0:01:15]} 54. Rd5 {[%clk 0:00:23]}  Rc2+ {[%clk 0:01:13]} 55. Kd6 {[%clk 0:00:24]}  Rh2 {[%clk 0:01:14]} 56. Re1 {[%clk 0:00:22]}  Rxh3 {[%clk 0:01:14]} 57. Re6+ {[%clk 0:00:23]}  Kf7 {[%clk 0:01:15]} 58. f6 {[%clk 0:00:20]}  Ra3 {[%clk 0:01:14]} 59. Rc5 {[%clk 0:00:19]}  Rd3+ {[%clk 0:01:13]} 60. Kc7 {[%clk 0:00:18]}  Kxe6 {[%clk 0:01:12]} 61. Rc6+ {[%clk 0:00:18]}  Kf7 {[%clk 0:01:12]} 62. Kb6 {[%clk 0:00:14]}  Rb3+ {[%clk 0:01:11]} 63. Kc7 {[%clk 0:00:15]}  Rd3 {[%clk 0:01:11]} 64. Rd6 {[%clk 0:00:14]}  Rxd6 {[%clk 0:01:09]} 65. Kxd6 {[%clk 0:00:15]}  Kxf6 {[%clk 0:01:09]} 1/2-1/2

[Event "December 12 Early 2023"]
[Site "https://www.chess.com"]
[Date "2023.12.12"]
[Round "6"]
[White "Sailer, Mike"]
[Black "Skurikhin, Dmitrij"]
[Result "1-0"]
[Board "178"]
[TimeControl "180+1"]
[WhiteFideId "2012901"]
[BlackFideId "4161297"]
[WhiteElo "2047"]
[BlackElo "2335"]
[WhiteTeam "USA"]
[BlackTeam "RUS"]
[WhiteClock "0:00:19"]
[BlackClock "0:01:32"]

1. d4 {[%clk 0:03:00]}  d5 {[%clk 0:02:57]} 2. Bf4 {[%clk 0:02:58]}  c5 {[%clk 0:02:49]} 3. e3 {[%clk 0:02:58]}  Nc6 {[%clk 0:02:47]} 4. Nf3 {[%clk 0:02:53]}  Nf6 {[%clk 0:02:43]} 5. Bb5 {[%clk 0:02:48]}  cxd4 {[%clk 0:02:41]} 6. exd4 {[%clk 0:02:47]}  Qa5+ {[%clk 0:02:41]} 7. Nc3 {[%clk 0:02:46]}  Ne4 {[%clk 0:02:40]} 8. Bxc6+ {[%clk 0:02:45]}  bxc6 {[%clk 0:02:41]} 9. O-O {[%clk 0:02:36]}  Bg4 {[%clk 0:02:34]} 10. Qd3 {[%clk 0:02:25]}  Nxc3 {[%clk 0:02:29]} 11. bxc3 {[%clk 0:02:24]}  e6 {[%clk 0:02:29]} 12. Ne5 {[%clk 0:02:23]}  Bf5 {[%clk 0:02:27]} 13. Qg3 {[%clk 0:02:23]}  Rc8 {[%clk 0:02:22]} 14. Rfb1 {[%clk 0:02:04]}  f6 {[%clk 0:01:58]} 15. Nd3 {[%clk 0:01:39]}  Qxc3 {[%clk 0:01:56]} 16. Re1 {[%clk 0:01:06]}  g5 {[%clk 0:01:53]} 17. Bd6 {[%clk 0:01:03]}  Bg7 {[%clk 0:01:46]} 18. Qf3 {[%clk 0:00:46]}  h5 {[%clk 0:01:40]} 19. Qxf5 {[%clk 0:00:40]}  Kf7 {[%clk 0:01:37]} 20. Qxe6+ {[%clk 0:00:36]}  Kg6 {[%clk 0:01:37]} 21. Ne5+ {[%clk 0:00:32]}  Kh7 {[%clk 0:01:36]} 22. Qf5+ {[%clk 0:00:20]}  Kg8 {[%clk 0:01:35]} 23. Qxc8+ {[%clk 0:00:20]}  Kh7 {[%clk 0:01:34]} 24. Qf5+ {[%clk 0:00:20]}  Kg8 {[%clk 0:01:34]} 25. Ng6 {[%clk 0:00:20]}  Kh7 {[%clk 0:01:33]} 26. Nxh8+ {[%clk 0:00:20]}  Kxh8 {[%clk 0:01:33]} 27. Re8+ {[%clk 0:00:18]}  Bf8 {[%clk 0:01:33]} 28. Rxf8+ {[%clk 0:00:19]}  Kg7 {[%clk 0:01:32]} 29. Qxf6+ {[%clk 0:00:19]}  Kh7 {[%clk 0:01:32]} 30. Rh8# {[%clk 0:00:19]} 1-0

[Event "December 12 Early 2023"]
[Site "https://www.chess.com"]
[Date "2023.12.12"]
[Round "6"]
[White "Reinecke, Katharina"]
[Black "Buscar, Michael"]
[Result "0-1"]
[Board "179"]
[TimeControl "180+1"]
[WhiteFideId "12929727"]
[BlackFideId "2603616"]
[WhiteElo "2017"]
[BlackElo "2331"]
[WhiteTeam "GER"]
[BlackTeam "CAN"]
[WhiteClock "0:00:05"]
[BlackClock "0:00:43"]

1. d4 {[%clk 0:03:00]}  Nf6 {[%clk 0:02:57]} 2. c4 {[%clk 0:03:00]}  e6 {[%clk 0:02:57]} 3. Nf3 {[%clk 0:02:59]}  c5 {[%clk 0:02:57]} 4. g3 {[%clk 0:02:56]}  cxd4 {[%clk 0:02:55]} 5. Nxd4 {[%clk 0:02:56]}  Nc6 {[%clk 0:02:52]} 6. Bg2 {[%clk 0:02:48]}  Bb4+ {[%clk 0:02:45]} 7. Nc3 {[%clk 0:02:38]}  Qa5 {[%clk 0:02:41]} 8. Nxc6 {[%clk 0:02:28]}  bxc6 {[%clk 0:02:38]} 9. Bd2 {[%clk 0:02:24]}  Ba6 {[%clk 0:02:35]} 10. a3 {[%clk 0:02:07]}  Be7 {[%clk 0:02:25]} 11. b4 {[%clk 0:02:01]}  Qh5 {[%clk 0:02:19]} 12. b5 {[%clk 0:01:42]}  Bb7 {[%clk 0:02:18]} 13. O-O {[%clk 0:01:21]}  O-O {[%clk 0:02:15]} 14. e3 {[%clk 0:01:10]}  Qc5 {[%clk 0:02:04]} 15. Qe2 {[%clk 0:00:57]}  Rab8 {[%clk 0:02:01]} 16. Na4 {[%clk 0:00:46]}  Qe5 {[%clk 0:01:59]} 17. Bc3 {[%clk 0:00:38]}  Qc7 {[%clk 0:01:57]} 18. bxc6 {[%clk 0:00:28]}  Bxc6 {[%clk 0:01:54]} 19. Nb2 {[%clk 0:00:25]}  Bxg2 {[%clk 0:01:48]} 20. Kxg2 {[%clk 0:00:25]}  Ne4 {[%clk 0:01:49]} 21. Bd4 {[%clk 0:00:22]}  Ng5 {[%clk 0:01:25]} 22. f3 {[%clk 0:00:19]}  Bc5 {[%clk 0:01:21]} 23. Bxc5 {[%clk 0:00:18]}  Qxc5 {[%clk 0:01:21]} 24. Nd3 {[%clk 0:00:18]}  Qxc4 {[%clk 0:01:18]} 25. Rfc1 {[%clk 0:00:18]}  Qd5 {[%clk 0:01:13]} 26. Nf4 {[%clk 0:00:17]}  Qe5 {[%clk 0:01:08]} 27. h4 {[%clk 0:00:15]}  Rb2 {[%clk 0:01:08]} 28. Rc2 {[%clk 0:00:14]}  Rxc2 {[%clk 0:01:08]} 29. Qxc2 {[%clk 0:00:14]}  Qxa1 {[%clk 0:01:08]} 30. hxg5 {[%clk 0:00:12]}  Rb8 {[%clk 0:01:07]} 31. Kh3 {[%clk 0:00:11]}  Qh1+ {[%clk 0:01:05]} 32. Kg4 {[%clk 0:00:10]}  Rf8 {[%clk 0:00:50]} 33. Qc7 {[%clk 0:00:08]}  h6 {[%clk 0:00:43]} 34. gxh6 {[%clk 0:00:07]}  f5+ {[%clk 0:00:43]} 35. Kg5 {[%clk 0:00:05]}  Qxh6# {[%clk 0:00:43]} 0-1

[Event "December 12 Early 2023"]
[Site "https://www.chess.com"]
[Date "2023.12.12"]
[Round "6"]
[White "Franchini, Gabriele"]
[Black "Donatti, Alvaro"]
[Result "0-1"]
[Board "180"]
[TimeControl "180+1"]
[WhiteFideId "806790"]
[BlackFideId "3000303"]
[WhiteElo "2326"]
[BlackElo "2015"]
[WhiteTeam "ITA"]
[BlackTeam "URU"]
[WhiteClock "0:00:00"]
[BlackClock "0:00:38"]

1. e4 {[%clk 0:03:00]}  c5 {[%clk 0:02:59]} 2. Nc3 {[%clk 0:03:00]}  e6 {[%clk 0:02:58]} 3. f4 {[%clk 0:02:59]}  d5 {[%clk 0:02:56]} 4. Nf3 {[%clk 0:02:59]}  Nc6 {[%clk 0:02:55]} 5. Bb5 {[%clk 0:02:55]}  Nf6 {[%clk 0:02:49]} 6. Bxc6+ {[%clk 0:02:45]}  bxc6 {[%clk 0:02:46]} 7. d3 {[%clk 0:02:33]}  c4 {[%clk 0:02:42]} 8. dxc4 {[%clk 0:02:22]}  Bb4 {[%clk 0:02:42]} 9. exd5 {[%clk 0:02:05]}  cxd5 {[%clk 0:02:39]} 10. cxd5 {[%clk 0:01:50]}  Nxd5 {[%clk 0:02:39]} 11. O-O {[%clk 0:01:44]}  Nxc3 {[%clk 0:02:15]} 12. Qxd8+ {[%clk 0:01:39]}  Kxd8 {[%clk 0:02:14]} 13. bxc3 {[%clk 0:01:40]}  Bxc3 {[%clk 0:02:13]} 14. Rb1 {[%clk 0:01:39]}  Ke7 {[%clk 0:01:59]} 15. Ba3+ {[%clk 0:01:38]}  Kf6 {[%clk 0:01:58]} 16. Rb3 {[%clk 0:01:35]}  Ba5 {[%clk 0:01:48]} 17. Ne5 {[%clk 0:01:21]}  Ba6 {[%clk 0:01:33]} 18. Nd7+ {[%clk 0:01:03]}  Kg6 {[%clk 0:01:27]} 19. Rff3 {[%clk 0:00:57]}  f6 {[%clk 0:01:18]} 20. Nc5 {[%clk 0:00:35]}  Bb6 {[%clk 0:01:14]} 21. h3 {[%clk 0:00:18]}  Bc4 {[%clk 0:01:11]} 22. Rbc3 {[%clk 0:00:16]}  Bd5 {[%clk 0:01:11]} 23. Rg3+ {[%clk 0:00:15]}  Kf7 {[%clk 0:01:09]} 24. Kh2 {[%clk 0:00:16]}  Rac8 {[%clk 0:01:05]} 25. Na4 {[%clk 0:00:10]}  Bxa2 {[%clk 0:00:54]} 26. Rcd3 {[%clk 0:00:05]}  Bd5 {[%clk 0:00:45]} 27. Nxb6 {[%clk 0:00:05]}  axb6 {[%clk 0:00:44]} 28. Bb4 {[%clk 0:00:04]}  Rxc2 {[%clk 0:00:43]} 29. Ra3 {[%clk 0:00:03]}  Ra8 {[%clk 0:00:41]} 30. Rad3 {[%clk 0:00:00]}  Raa2 {[%clk 0:00:38]} 0-1

[Event "December 12 Early 2023"]
[Site "https://www.chess.com"]
[Date "2023.12.12"]
[Round "6"]
[White "Santos, Isaque Goncalves"]
[Black "Filippova, Margarita"]
[Result "0-1"]
[Board "183"]
[TimeControl "180+1"]
[WhiteFideId "2103885"]
[BlackFideId "34199680"]
[WhiteElo "1840"]
[BlackElo "2316"]
[WhiteTeam "BRA"]
[BlackTeam "RUS"]
[WhiteClock "0:00:00"]
[BlackClock "0:01:02"]

1. d4 {[%clk 0:02:55]}  d5 {[%clk 0:02:58]} 2. c4 {[%clk 0:02:54]}  e6 {[%clk 0:02:59]} 3. Nc3 {[%clk 0:02:54]}  Nf6 {[%clk 0:02:58]} 4. Bg5 {[%clk 0:02:52]}  Be7 {[%clk 0:02:57]} 5. Nf3 {[%clk 0:02:51]}  O-O {[%clk 0:02:53]} 6. e3 {[%clk 0:02:50]}  dxc4 {[%clk 0:02:46]} 7. Bxc4 {[%clk 0:02:49]}  a6 {[%clk 0:02:47]} 8. O-O {[%clk 0:02:43]}  Nbd7 {[%clk 0:02:40]} 9. Qe2 {[%clk 0:02:41]}  b5 {[%clk 0:02:40]} 10. Bd3 {[%clk 0:02:40]}  Bb7 {[%clk 0:02:40]} 11. Rfd1 {[%clk 0:02:40]}  h6 {[%clk 0:02:37]} 12. Bh4 {[%clk 0:02:39]}  Nd5 {[%clk 0:02:37]} 13. Bg3 {[%clk 0:02:24]}  Rc8 {[%clk 0:02:26]} 14. Ne4 {[%clk 0:02:18]}  Nb4 {[%clk 0:02:14]} 15. Nfd2 {[%clk 0:02:02]}  Nxd3 {[%clk 0:02:09]} 16. Qxd3 {[%clk 0:02:02]}  c5 {[%clk 0:02:10]} 17. dxc5 {[%clk 0:01:53]}  Nxc5 {[%clk 0:02:09]} 18. Qxd8 {[%clk 0:01:43]}  Rfxd8 {[%clk 0:02:09]} 19. Nxc5 {[%clk 0:01:39]}  Bxc5 {[%clk 0:02:10]} 20. Nb3 {[%clk 0:01:39]}  Bb6 {[%clk 0:02:10]} 21. Rdc1 {[%clk 0:01:17]}  f6 {[%clk 0:01:56]} 22. Kf1 {[%clk 0:01:12]}  e5 {[%clk 0:01:55]} 23. Ke2 {[%clk 0:01:05]}  Kf7 {[%clk 0:01:55]} 24. f3 {[%clk 0:01:00]}  Ke6 {[%clk 0:01:52]} 25. e4 {[%clk 0:01:00]}  Rc4 {[%clk 0:01:42]} 26. Rxc4 {[%clk 0:00:52]}  bxc4 {[%clk 0:01:43]} 27. Nd2 {[%clk 0:00:50]}  Bd4 {[%clk 0:01:38]} 28. Nxc4 {[%clk 0:00:40]}  Rc8 {[%clk 0:01:33]} 29. Kd3 {[%clk 0:00:31]}  a5 {[%clk 0:01:29]} 30. Rb1 {[%clk 0:00:15]}  Ba6 {[%clk 0:01:27]} 31. b3 {[%clk 0:00:15]}  a4 {[%clk 0:01:27]} 32. Be1 {[%clk 0:00:14]}  f5 {[%clk 0:01:22]} 33. Bc3 {[%clk 0:00:14]}  Ba7 {[%clk 0:01:13]} 34. Bd2 {[%clk 0:00:13]}  Rd8+ {[%clk 0:01:11]} 35. Ke2 {[%clk 0:00:13]}  fxe4 {[%clk 0:01:07]} 36. fxe4 {[%clk 0:00:12]}  Rd4 {[%clk 0:01:08]} 37. Ke3 {[%clk 0:00:04]}  Rxc4+ {[%clk 0:01:07]} 38. Ke2 {[%clk 0:00:02]}  Rxe4+ {[%clk 0:01:07]} 39. Kd1 {[%clk 0:00:00]}  Re2 {[%clk 0:01:02]} 0-1

[Event "December 12 Early 2023"]
[Site "https://www.chess.com"]
[Date "2023.12.12"]
[Round "6"]
[White "Jakubowska, Anna"]
[Black "Gazineu Neto, Rubens"]
[Result "1-0"]
[Board "184"]
[TimeControl "180+1"]
[WhiteFideId "1121952"]
[BlackFideId "2174685"]
[WhiteElo "2335"]
[BlackElo "1973"]
[WhiteTeam "POL"]
[BlackTeam "BRA"]
[WhiteClock "0:01:21"]
[BlackClock "0:00:00"]

1. e4 {[%clk 0:03:00]}  c5 {[%clk 0:02:58]} 2. Nf3 {[%clk 0:03:00]}  Nc6 {[%clk 0:02:57]} 3. d4 {[%clk 0:03:00]}  cxd4 {[%clk 0:02:58]} 4. Nxd4 {[%clk 0:03:01]}  Nf6 {[%clk 0:02:58]} 5. Nc3 {[%clk 0:03:01]}  e5 {[%clk 0:02:58]} 6. Ndb5 {[%clk 0:03:01]}  d6 {[%clk 0:02:58]} 7. Bg5 {[%clk 0:03:01]}  a6 {[%clk 0:02:59]} 8. Na3 {[%clk 0:03:01]}  b5 {[%clk 0:02:59]} 9. Nd5 {[%clk 0:03:01]}  Be7 {[%clk 0:03:00]} 10. Bxf6 {[%clk 0:03:02]}  Bxf6 {[%clk 0:03:00]} 11. c3 {[%clk 0:03:02]}  O-O {[%clk 0:03:01]} 12. Nc2 {[%clk 0:03:01]}  Bg5 {[%clk 0:03:01]} 13. a4 {[%clk 0:03:00]}  bxa4 {[%clk 0:03:01]} 14. Rxa4 {[%clk 0:03:00]}  a5 {[%clk 0:03:01]} 15. Bc4 {[%clk 0:03:00]}  Bd7 {[%clk 0:02:56]} 16. Ra1 {[%clk 0:02:58]}  Ne7 {[%clk 0:02:52]} 17. Nce3 {[%clk 0:02:56]}  Bxe3 {[%clk 0:02:52]} 18. Nxe3 {[%clk 0:02:56]}  Bc6 {[%clk 0:02:48]} 19. f3 {[%clk 0:02:51]}  Qb6 {[%clk 0:02:38]} 20. Qd2 {[%clk 0:02:48]}  Rad8 {[%clk 0:02:28]} 21. b3 {[%clk 0:02:25]}  Kh8 {[%clk 0:02:24]} 22. Qf2 {[%clk 0:02:18]}  f5 {[%clk 0:01:26]} 23. Nxf5 {[%clk 0:02:12]}  Qxf2+ {[%clk 0:01:22]} 24. Kxf2 {[%clk 0:02:13]}  Nxf5 {[%clk 0:01:22]} 25. exf5 {[%clk 0:02:12]}  Rxf5 {[%clk 0:01:15]} 26. Rxa5 {[%clk 0:02:10]}  d5 {[%clk 0:01:10]} 27. Bd3 {[%clk 0:02:09]}  Rf6 {[%clk 0:01:01]} 28. Bb5 {[%clk 0:01:59]}  Bb7 {[%clk 0:00:37]} 29. Ra7 {[%clk 0:01:57]}  Rb6 {[%clk 0:00:36]} 30. c4 {[%clk 0:01:56]}  dxc4 {[%clk 0:00:34]} 31. bxc4 {[%clk 0:01:56]}  e4 {[%clk 0:00:29]} 32. Re1 {[%clk 0:01:42]}  exf3 {[%clk 0:00:16]} 33. gxf3 {[%clk 0:01:43]}  Bc6 {[%clk 0:00:10]} 34. Re6 {[%clk 0:01:37]}  Rxb5 {[%clk 0:00:09]} 35. cxb5 {[%clk 0:01:33]}  Bxb5 {[%clk 0:00:09]} 36. Rb6 {[%clk 0:01:23]}  Bd3 {[%clk 0:00:00]} 37. Rd6 {[%clk 0:01:21]} 1-0

[Event "December 12 Early 2023"]
[Site "https://www.chess.com"]
[Date "2023.12.12"]
[Round "6"]
[White "Guzman Lozano, Campo Elias"]
[Black "Aalto, Patrik"]
[Result "0-1"]
[Board "185"]
[TimeControl "180+1"]
[WhiteFideId "4403746"]
[BlackFideId "510726"]
[WhiteElo "2188"]
[BlackElo "2436"]
[WhiteTeam "COL"]
[BlackTeam "FIN"]
[WhiteClock "0:01:01"]
[BlackClock "0:01:34"]

1. e4 {[%clk 0:02:58]}  c5 {[%clk 0:03:00]} 2. Nc3 {[%clk 0:02:55]}  a6 {[%clk 0:03:00]} 3. g3 {[%clk 0:02:55]}  b5 {[%clk 0:03:00]} 4. Bg2 {[%clk 0:02:55]}  Bb7 {[%clk 0:03:01]} 5. d3 {[%clk 0:02:51]}  e6 {[%clk 0:03:00]} 6. Nf3 {[%clk 0:02:50]}  Nc6 {[%clk 0:03:01]} 7. O-O {[%clk 0:02:50]}  Be7 {[%clk 0:02:51]} 8. Be3 {[%clk 0:02:47]}  d6 {[%clk 0:02:48]} 9. Re1 {[%clk 0:02:47]}  Nf6 {[%clk 0:02:48]} 10. Nd2 {[%clk 0:02:45]}  O-O {[%clk 0:02:47]} 11. f4 {[%clk 0:02:44]}  d5 {[%clk 0:02:45]} 12. e5 {[%clk 0:02:38]}  d4 {[%clk 0:02:40]} 13. exf6 {[%clk 0:02:36]}  Bxf6 {[%clk 0:02:39]} 14. Bf2 {[%clk 0:02:25]}  dxc3 {[%clk 0:02:37]} 15. bxc3 {[%clk 0:02:24]}  Bxc3 {[%clk 0:02:34]} 16. Rb1 {[%clk 0:02:22]}  Bd4 {[%clk 0:02:29]} 17. Ne4 {[%clk 0:02:18]}  Bxf2+ {[%clk 0:02:27]} 18. Nxf2 {[%clk 0:02:16]}  Qd7 {[%clk 0:02:25]} 19. Qh5 {[%clk 0:02:14]}  Nd4 {[%clk 0:02:18]} 20. Qxc5 {[%clk 0:02:05]}  Bxg2 {[%clk 0:02:15]} 21. Kxg2 {[%clk 0:02:02]}  Rac8 {[%clk 0:02:11]} 22. Qa3 {[%clk 0:01:47]}  Nxc2 {[%clk 0:02:02]} 23. Qxa6 {[%clk 0:01:43]}  Nxe1+ {[%clk 0:01:59]} 24. Rxe1 {[%clk 0:01:42]}  Ra8 {[%clk 0:02:00]} 25. Qb6 {[%clk 0:01:39]}  Rxa2 {[%clk 0:02:00]} 26. Kf1 {[%clk 0:01:39]}  Qd5 {[%clk 0:01:58]} 27. Qe3 {[%clk 0:01:26]}  b4 {[%clk 0:01:55]} 28. Rb1 {[%clk 0:01:17]}  b3 {[%clk 0:01:52]} 29. Qe4 {[%clk 0:01:14]}  b2 {[%clk 0:01:46]} 30. Qxd5 {[%clk 0:01:10]}  exd5 {[%clk 0:01:46]} 31. Ke2 {[%clk 0:01:10]}  Rb8 {[%clk 0:01:36]} 32. Nd1 {[%clk 0:01:07]}  Ra1 {[%clk 0:01:34]} 33. Rxb2 {[%clk 0:01:06]}  Rxb2+ {[%clk 0:01:34]} 34. Nxb2 {[%clk 0:01:01]}  Ra2 {[%clk 0:01:34]} 0-1

[Event "December 12 Early 2023"]
[Site "https://www.chess.com"]
[Date "2023.12.12"]
[Round "6"]
[White "Kopczynski, Michal"]
[Black "Llari, Marc"]
[Result "1/2-1/2"]
[Board "187"]
[TimeControl "180+1"]
[WhiteFideId "1124200"]
[BlackFideId "651044269"]
[WhiteElo "2537"]
[BlackElo "2272"]
[WhiteTeam "POL"]
[BlackTeam "FRA"]
[WhiteClock "0:00:17"]
[BlackClock "0:00:52"]

1. e4 {[%clk 0:03:00]}  e6 {[%clk 0:02:57]} 2. d4 {[%clk 0:03:01]}  d5 {[%clk 0:02:58]} 3. Nc3 {[%clk 0:03:01]}  Bb4 {[%clk 0:02:56]} 4. e5 {[%clk 0:03:02]}  c5 {[%clk 0:02:55]} 5. dxc5 {[%clk 0:03:03]}  Bxc5 {[%clk 0:02:52]} 6. f4 {[%clk 0:03:03]}  Ne7 {[%clk 0:02:50]} 7. Nf3 {[%clk 0:03:03]}  Nbc6 {[%clk 0:02:50]} 8. Bd3 {[%clk 0:03:04]}  Nb4 {[%clk 0:02:49]} 9. a3 {[%clk 0:03:03]}  Nxd3+ {[%clk 0:02:49]} 10. Qxd3 {[%clk 0:03:04]}  a6 {[%clk 0:02:48]} 11. Bd2 {[%clk 0:03:05]}  Bd7 {[%clk 0:02:47]} 12. O-O-O {[%clk 0:03:05]}  b5 {[%clk 0:02:46]} 13. g4 {[%clk 0:03:04]}  h5 {[%clk 0:02:44]} 14. h3 {[%clk 0:03:03]}  Rb8 {[%clk 0:02:42]} 15. f5 {[%clk 0:03:02]}  exf5 {[%clk 0:02:42]} 16. Nxd5 {[%clk 0:02:59]}  Nxd5 {[%clk 0:02:42]} 17. Qxd5 {[%clk 0:02:59]}  Qc7 {[%clk 0:02:36]} 18. Ng5 {[%clk 0:02:57]}  O-O {[%clk 0:02:21]} 19. gxh5 {[%clk 0:02:50]}  Rbd8 {[%clk 0:02:15]} 20. Ba5 {[%clk 0:02:45]}  Bb6 {[%clk 0:02:13]} 21. Bxb6 {[%clk 0:02:37]}  Qxb6 {[%clk 0:02:14]} 22. Qd4 {[%clk 0:02:29]}  Qxd4 {[%clk 0:02:08]} 23. Rxd4 {[%clk 0:02:30]}  Bc6 {[%clk 0:02:08]} 24. Rhd1 {[%clk 0:02:29]}  Rxd4 {[%clk 0:02:07]} 25. Rxd4 {[%clk 0:02:29]}  Re8 {[%clk 0:02:06]} 26. Rd6 {[%clk 0:02:28]}  Bb7 {[%clk 0:02:06]} 27. Rd7 {[%clk 0:02:26]}  Bc8 {[%clk 0:02:05]} 28. Rc7 {[%clk 0:02:20]}  Be6 {[%clk 0:02:04]} 29. Kd2 {[%clk 0:02:18]}  a5 {[%clk 0:02:03]} 30. Ke3 {[%clk 0:02:14]}  b4 {[%clk 0:02:01]} 31. axb4 {[%clk 0:02:13]}  axb4 {[%clk 0:02:02]} 32. Kf4 {[%clk 0:02:13]}  Rd8 {[%clk 0:01:59]} 33. Nf3 {[%clk 0:02:07]}  Kh7 {[%clk 0:01:55]} 34. Rb7 {[%clk 0:02:04]}  b3 {[%clk 0:01:52]} 35. cxb3 {[%clk 0:02:02]}  Rd3 {[%clk 0:01:50]} 36. b4 {[%clk 0:01:59]}  Kh6 {[%clk 0:01:47]} 37. Rb8 {[%clk 0:01:54]}  g6 {[%clk 0:01:31]} 38. hxg6 {[%clk 0:01:52]}  fxg6 {[%clk 0:01:32]} 39. Ng5 {[%clk 0:01:41]}  Rd4+ {[%clk 0:01:31]} 40. Ke3 {[%clk 0:01:41]}  Rd5 {[%clk 0:01:24]} 41. h4 {[%clk 0:01:06]}  Rxe5+ {[%clk 0:01:20]} 42. Kf4 {[%clk 0:01:03]}  Re2 {[%clk 0:01:19]} 43. b5 {[%clk 0:01:00]}  Bc4 {[%clk 0:01:12]} 44. b6 {[%clk 0:00:59]}  Rxb2 {[%clk 0:01:08]} 45. Ke5 {[%clk 0:00:46]}  Kg7 {[%clk 0:01:06]} 46. b7 {[%clk 0:00:39]}  Rb5+ {[%clk 0:01:04]} 47. Kd6 {[%clk 0:00:39]}  Bd5 {[%clk 0:01:03]} 48. Kc7 {[%clk 0:00:30]}  Rxb7+ {[%clk 0:01:00]} 49. Rxb7 {[%clk 0:00:31]}  Bxb7 {[%clk 0:01:01]} 50. Kxb7 {[%clk 0:00:32]}  Kh6 {[%clk 0:01:02]} 51. Kc6 {[%clk 0:00:27]}  Kh5 {[%clk 0:01:02]} 52. Kd5 {[%clk 0:00:28]}  Kxh4 {[%clk 0:01:02]} 53. Nf3+ {[%clk 0:00:27]}  Kg3 {[%clk 0:01:00]} 54. Ne5 {[%clk 0:00:27]}  g5 {[%clk 0:01:00]} 55. Kd4 {[%clk 0:00:26]}  g4 {[%clk 0:00:57]} 56. Ke3 {[%clk 0:00:25]}  f4+ {[%clk 0:00:57]} 57. Ke2 {[%clk 0:00:25]}  f3+ {[%clk 0:00:47]} 58. Kf1 {[%clk 0:00:23]}  Kf4 {[%clk 0:00:47]} 59. Nxg4 {[%clk 0:00:17]}  Kxg4 {[%clk 0:00:47]} 60. Kf2 {[%clk 0:00:18]}  Kf4 {[%clk 0:00:47]} 61. Kf1 {[%clk 0:00:18]}  Kg4 {[%clk 0:00:48]} 62. Kf2 {[%clk 0:00:18]}  Kf4 {[%clk 0:00:48]} 63. Kf1 {[%clk 0:00:18]}  Kg3 {[%clk 0:00:49]} 64. Kg1 {[%clk 0:00:19]}  Kh3 {[%clk 0:00:49]} 65. Kf2 {[%clk 0:00:17]}  Kg4 {[%clk 0:00:50]} 66. Kf1 {[%clk 0:00:16]}  Kg3 {[%clk 0:00:51]} 67. Kg1 {[%clk 0:00:17]}  Kf4 {[%clk 0:00:51]} 68. Kf2 {[%clk 0:00:17]}  Ke4 {[%clk 0:00:52]} 69. Kf1 {[%clk 0:00:17]}  Ke3 {[%clk 0:00:53]} 70. Ke1 {[%clk 0:00:17]}  f2+ {[%clk 0:00:51]} 71. Kf1 {[%clk 0:00:17]}  Kf3 {[%clk 0:00:52]} 1/2-1/2